[Event "Early-Titled-Tuesday-Blitz-January-23-2024"]
[Site "Chess.com"]
[Date "2024.01.23"]
[Round "3"]
[White "rynos0411"]
[Black "Alonmindlin"]
[Result "0-1"]
[WhiteElo "2499"]
[BlackElo "2701"]
[TimeControl "180+1"]
[EndTime "8:27:23 PST"]
[Termination "Alonmindlin won by resignation"]

1. e4 {[%clk 0:03:00.9]} 1... c5 {[%clk 0:02:57.5]} 2. Nf3 {[%clk 0:02:59.5]}
2... Nc6 {[%clk 0:02:57.1]} 3. Bb5 {[%clk 0:02:56.9]} 3... g6 {[%clk 0:02:52]}
4. O-O {[%clk 0:02:52.6]} 4... Bg7 {[%clk 0:02:51.1]} 5. Bxc6 {[%clk 0:02:53.1]}
5... dxc6 {[%clk 0:02:51.2]} 6. d3 {[%clk 0:02:51]} 6... Nf6 {[%clk 0:02:46.4]}
7. a4 {[%clk 0:02:48.9]} 7... Nd7 {[%clk 0:02:44.7]} 8. a5 {[%clk 0:02:43.5]}
8... Nf8 {[%clk 0:02:43.2]} 9. c3 {[%clk 0:02:36.1]} 9... Bg4 {[%clk 0:02:39.4]}
10. h3 {[%clk 0:02:33.7]} 10... Bxf3 {[%clk 0:02:39.1]} 11. Qxf3 {[%clk
0:02:34]} 11... Ne6 {[%clk 0:02:40]} 12. Rd1 {[%clk 0:02:33.7]} 12... O-O {[%clk
0:02:39.1]} 13. Nd2 {[%clk 0:02:31.5]} 13... Qd7 {[%clk 0:02:33]} 14. Nc4 {[%clk
0:02:27.4]} 14... Rad8 {[%clk 0:02:32.2]} 15. Be3 {[%clk 0:02:26.6]} 15... Qc7
{[%clk 0:02:27.3]} 16. Rac1 {[%clk 0:02:05.9]} 16... b5 {[%clk 0:02:25.1]} 17.
axb6 {[%clk 0:02:02]} 17... axb6 {[%clk 0:02:26]} 18. b4 {[%clk 0:02:00.8]}
18... b5 {[%clk 0:02:22.2]} 19. Na5 {[%clk 0:01:55]} 19... Rd7 {[%clk
0:02:08.9]} 20. e5 {[%clk 0:01:38.6]} 20... Rd5 {[%clk 0:01:51.5]} 21. Nxc6
{[%clk 0:01:17.2]} 21... Qxc6 {[%clk 0:01:47.6]} 22. c4 {[%clk 0:01:16.9]} 22...
bxc4 {[%clk 0:01:48.1]} 23. Rxc4 {[%clk 0:01:04.4]} 23... Rc8 {[%clk 0:01:46.5]}
24. d4 {[%clk 0:00:45.1]} 24... Rdd8 {[%clk 0:01:31]} 25. bxc5 {[%clk
0:00:30.9]} 25... Qxf3 {[%clk 0:01:27.4]} 26. gxf3 {[%clk 0:00:31.8]} 26... Rxc5
{[%clk 0:01:27.4]} 27. Rxc5 {[%clk 0:00:25.1]} 27... Nxc5 {[%clk 0:01:26.1]} 28.
Rc1 {[%clk 0:00:26]} 28... Nb3 {[%clk 0:01:19.4]} 29. Rc4 {[%clk 0:00:26]} 29...
f6 {[%clk 0:01:19.2]} 30. Rb4 {[%clk 0:00:25.9]} 30... Na5 {[%clk 0:01:18.7]}
31. f4 {[%clk 0:00:23.6]} 31... Kf7 {[%clk 0:01:15.9]} 32. Kg2 {[%clk
0:00:23.4]} 32... g5 {[%clk 0:00:54]} 33. Rb5 {[%clk 0:00:14.6]} 33... gxf4
{[%clk 0:00:53.3]} 34. Bxf4 {[%clk 0:00:13.5]} 34... Rxd4 {[%clk 0:00:51.8]} 35.
Be3 {[%clk 0:00:09.7]} 35... Ra4 {[%clk 0:00:51.7]} 36. exf6 {[%clk 0:00:10.2]}
36... Bxf6 {[%clk 0:00:51.6]} 37. Kf3 {[%clk 0:00:09.7]} 37... Nc4 {[%clk
0:00:51.8]} 38. Rh5 {[%clk 0:00:07.3]} 38... Nxe3 {[%clk 0:00:51.3]} 39. fxe3
{[%clk 0:00:07.3]} 39... Rh4 {[%clk 0:00:51.7]} 40. Rxh4 {[%clk 0:00:06.3]}
40... Bxh4 {[%clk 0:00:52.6]} 41. Kg4 {[%clk 0:00:06.8]} 41... Bf6 {[%clk
0:00:53.3]} 42. Kf5 {[%clk 0:00:07.6]} 42... e6+ {[%clk 0:00:53.2]} 43. Kf4
{[%clk 0:00:08.3]} 43... Kg6 {[%clk 0:00:53.7]} 44. e4 {[%clk 0:00:08.8]} 44...
e5+ {[%clk 0:00:52.9]} 45. Kg4 {[%clk 0:00:08.9]} 45... h5+ {[%clk 0:00:53.2]}
46. Kg3 {[%clk 0:00:09.4]} 46... Kg5 {[%clk 0:00:54]} 47. h4+ {[%clk 0:00:09.5]}
47... Kg6 {[%clk 0:00:54.6]} 48. Kh3 {[%clk 0:00:10.4]} 48... Kf7 {[%clk
0:00:55.5]} 49. Kg3 {[%clk 0:00:11.3]} 49... Ke6 {[%clk 0:00:56.4]} 0-1

[Event "Early-Titled-Tuesday-Blitz-January-23-2024"]
[Site "Chess.com"]
[Date "2024.01.23"]
[Round "3"]
[White "Yushko_Olga"]
[Black "NLLO777"]
[Result "1-0"]
[WhiteElo "2168"]
[BlackElo "2524"]
[TimeControl "180+1"]
[EndTime "8:27:23 PST"]
[Termination "Yushko_Olga won by resignation"]

1. d4 {[%clk 0:02:59.2]} 1... Nf6 {[%clk 0:02:58.9]} 2. c4 {[%clk 0:02:59.5]}
2... c5 {[%clk 0:02:59.3]} 3. d5 {[%clk 0:02:59.4]} 3... b5 {[%clk 0:02:59.9]}
4. cxb5 {[%clk 0:02:59.6]} 4... a6 {[%clk 0:03:00.5]} 5. b6 {[%clk 0:03:00.5]}
5... d6 {[%clk 0:03:01]} 6. Nc3 {[%clk 0:03:00.4]} 6... g6 {[%clk 0:03:01.6]} 7.
e4 {[%clk 0:03:00.8]} 7... Bg7 {[%clk 0:03:02.2]} 8. Bd3 {[%clk 0:03:00.1]} 8...
O-O {[%clk 0:03:01.9]} 9. h3 {[%clk 0:03:00.6]} 9... Qxb6 {[%clk 0:02:59]} 10.
Nf3 {[%clk 0:03:00.9]} 10... Nbd7 {[%clk 0:02:56.2]} 11. O-O {[%clk 0:03:00.7]}
11... a5 {[%clk 0:02:56.3]} 12. Re1 {[%clk 0:02:59]} 12... Ba6 {[%clk
0:02:56.9]} 13. Bc2 {[%clk 0:02:48.7]} 13... Ne8 {[%clk 0:02:53.5]} 14. Rb1
{[%clk 0:02:43.6]} 14... Nc7 {[%clk 0:02:53.8]} 15. Bf4 {[%clk 0:02:37]} 15...
Rfd8 {[%clk 0:02:16.4]} 16. e5 {[%clk 0:02:28.7]} 16... dxe5 {[%clk 0:02:11.9]}
17. Nxe5 {[%clk 0:02:29.6]} 17... Nxe5 {[%clk 0:02:12.8]} 18. Bxe5 {[%clk
0:02:29.7]} 18... Bxe5 {[%clk 0:02:13.7]} 19. Rxe5 {[%clk 0:02:29.9]} 19... e6
{[%clk 0:02:14.4]} 20. Qf3 {[%clk 0:02:20.9]} 20... Bb7 {[%clk 0:02:13.6]} 21.
Be4 {[%clk 0:02:18.2]} 21... f5 {[%clk 0:01:45.6]} 22. dxe6 {[%clk 0:02:10.7]}
22... Bxe4 {[%clk 0:01:30.9]} 23. Nxe4 {[%clk 0:02:08.5]} 23... Nxe6 {[%clk
0:01:31.4]} 24. Nf6+ {[%clk 0:01:34.6]} 24... Kg7 {[%clk 0:01:28.2]} 25. Nd5
{[%clk 0:01:26.2]} 25... Qd6 {[%clk 0:01:28.1]} 26. Rbe1 {[%clk 0:01:25.5]}
26... Re8 {[%clk 0:01:18.8]} 27. Nf4 {[%clk 0:01:15.8]} 27... Nd4 {[%clk
0:01:13.2]} 28. Qe3 {[%clk 0:01:08.3]} 28... Rxe5 {[%clk 0:00:18.1]} 29. Qxe5+
{[%clk 0:01:09.2]} 29... Qxe5 {[%clk 0:00:19]} 30. Rxe5 {[%clk 0:01:09.2]} 30...
Rc8 {[%clk 0:00:19.7]} 31. Ne6+ {[%clk 0:01:05.8]} 31... Kf6 {[%clk 0:00:19]}
32. Rxc5 {[%clk 0:01:02.6]} 32... Rb8 {[%clk 0:00:18.8]} 33. Nxd4 {[%clk
0:01:02.1]} 33... Rxb2 {[%clk 0:00:16.2]} 34. Rxa5 {[%clk 0:01:01.4]} 34... Rd2
{[%clk 0:00:15.5]} 35. Nf3 {[%clk 0:01:01.6]} 35... Rc2 {[%clk 0:00:15.8]} 36.
Ra6+ {[%clk 0:01:01.6]} 36... Kg7 {[%clk 0:00:16]} 37. a4 {[%clk 0:01:01.8]}
37... h6 {[%clk 0:00:16.9]} 38. a5 {[%clk 0:01:01.7]} 38... g5 {[%clk
0:00:17.5]} 39. Nd4 {[%clk 0:01:01.3]} 39... Rc1+ {[%clk 0:00:17.5]} 40. Kh2
{[%clk 0:01:01.5]} 40... f4 {[%clk 0:00:18.4]} 41. Nf5+ {[%clk 0:01:00.4]} 41...
Kf7 {[%clk 0:00:19.1]} 42. Nxh6+ {[%clk 0:01:00.5]} 42... Ke7 {[%clk 0:00:20]}
43. Nf5+ {[%clk 0:00:56.7]} 43... Kf7 {[%clk 0:00:18.1]} 44. Nd6+ {[%clk
0:00:56.4]} 44... Kf6 {[%clk 0:00:17.1]} 45. Ne4+ {[%clk 0:00:56.4]} 45... Kf5
{[%clk 0:00:18]} 46. f3 {[%clk 0:00:56.8]} 46... Ke5 {[%clk 0:00:16.5]} 47. Nxg5
{[%clk 0:00:56.5]} 47... Rc2 {[%clk 0:00:15.9]} 48. Ne6 {[%clk 0:00:55.7]} 48...
Rc6 {[%clk 0:00:16.8]} 49. Rxc6 {[%clk 0:00:55.2]} 1-0

[Event "Early-Titled-Tuesday-Blitz-January-23-2024"]
[Site "Chess.com"]
[Date "2024.01.23"]
[Round "3"]
[White "C_K_G"]
[Black "Shivananda1964"]
[Result "0-1"]
[WhiteElo "2093"]
[BlackElo "2358"]
[TimeControl "180+1"]
[EndTime "8:27:26 PST"]
[Termination "Shivananda1964 won on time"]

1. e4 {[%clk 0:03:00.9]} 1... Nc6 {[%clk 0:02:59.2]} 2. Nf3 {[%clk 0:03:01.3]}
2... e5 {[%clk 0:02:58.5]} 3. Bc4 {[%clk 0:02:58.7]} 3... Nf6 {[%clk 0:02:58.6]}
4. Ng5 {[%clk 0:02:57]} 4... d5 {[%clk 0:02:58.3]} 5. exd5 {[%clk 0:02:57.4]}
5... b5 {[%clk 0:02:57]} 6. Bf1 {[%clk 0:02:56.4]} 6... Nd4 {[%clk 0:02:52.2]}
7. c3 {[%clk 0:02:47]} 7... Nxd5 {[%clk 0:02:47]} 8. cxd4 {[%clk 0:02:42.5]}
8... Qxg5 {[%clk 0:02:42.2]} 9. Bxb5+ {[%clk 0:02:40.9]} 9... Kd8 {[%clk
0:02:41.9]} 10. Qf3 {[%clk 0:02:29.8]} 10... Bb7 {[%clk 0:02:38.7]} 11. O-O
{[%clk 0:02:27.5]} 11... Bd6 {[%clk 0:02:00.1]} 12. dxe5 {[%clk 0:02:13.4]}
12... Qxe5 {[%clk 0:01:58.5]} 13. g3 {[%clk 0:02:06.7]} 13... Rb8 {[%clk
0:01:57.3]} 14. d4 {[%clk 0:02:00.5]} 14... Qe6 {[%clk 0:01:47.6]} 15. Bc4
{[%clk 0:01:57.8]} 15... Re8 {[%clk 0:01:36.1]} 16. Bg5+ {[%clk 0:01:34.7]}
16... f6 {[%clk 0:01:34.5]} 17. Bd2 {[%clk 0:01:24.7]} 17... g5 {[%clk
0:01:25.8]} 18. Qb3 {[%clk 0:00:59.4]} 18... Qe4 {[%clk 0:00:58.5]} 19. Bxd5
{[%clk 0:00:11.3]} 19... Bxd5 {[%clk 0:00:56.5]} 20. Qxb8+ {[%clk 0:00:10.1]}
20... Kd7 {[%clk 0:00:51.7]} 21. Qxe8+ {[%clk 0:00:09.4]} 21... Qxe8 {[%clk
0:00:50.8]} 22. Bc3 {[%clk 0:00:07.5]} 22... Qe4 {[%clk 0:00:48.7]} 23. f3
{[%clk 0:00:07.9]} 23... Qe3+ {[%clk 0:00:48.4]} 24. Kg2 {[%clk 0:00:07.5]}
24... Qe2+ {[%clk 0:00:46.3]} 25. Rf2 {[%clk 0:00:07.9]} 25... Bxf3+ {[%clk
0:00:46.2]} 26. Kg1 {[%clk 0:00:05.3]} 26... Qd1+ {[%clk 0:00:24.7]} 27. Rf1
{[%clk 0:00:04.5]} 27... Qd3 {[%clk 0:00:23.7]} 28. Na3 {[%clk 0:00:03.5]} 28...
Bd5 {[%clk 0:00:18.7]} 29. Rad1 {[%clk 0:00:01.8]} 29... Qe4 {[%clk 0:00:18.3]}
0-1

[Event "Early-Titled-Tuesday-Blitz-January-23-2024"]
[Site "Chess.com"]
[Date "2024.01.23"]
[Round "3"]
[White "KetiTsatsalashvili"]
[Black "AsterPhoenix"]
[Result "1-0"]
[WhiteElo "2420"]
[BlackElo "2572"]
[TimeControl "180+1"]
[EndTime "8:27:29 PST"]
[Termination "KetiTsatsalashvili won by resignation"]

1. d4 {[%clk 0:03:00.9]} 1... d5 {[%clk 0:02:54.9]} 2. Nf3 {[%clk 0:03:00.4]}
2... Nf6 {[%clk 0:02:53]} 3. e3 {[%clk 0:03:00]} 3... e6 {[%clk 0:02:50.2]} 4.
Bd3 {[%clk 0:02:59.3]} 4... Bd6 {[%clk 0:02:49.5]} 5. O-O {[%clk 0:02:59.1]}
5... Nbd7 {[%clk 0:02:46.8]} 6. b3 {[%clk 0:02:59.1]} 6... b6 {[%clk 0:02:45.9]}
7. Bb2 {[%clk 0:02:59.4]} 7... Bb7 {[%clk 0:02:46.3]} 8. Ne5 {[%clk 0:02:59.5]}
8... Bxe5 {[%clk 0:02:36]} 9. dxe5 {[%clk 0:03:00.4]} 9... Ne4 {[%clk
0:02:36.5]} 10. Nd2 {[%clk 0:02:48.3]} 10... Nxd2 {[%clk 0:02:20.8]} 11. Qxd2
{[%clk 0:02:49.2]} 11... Qe7 {[%clk 0:02:19.4]} 12. a4 {[%clk 0:02:37.8]} 12...
a6 {[%clk 0:01:57.2]} 13. Ba3 {[%clk 0:02:22.4]} 13... c5 {[%clk 0:01:55.9]} 14.
f4 {[%clk 0:02:20.8]} 14... O-O {[%clk 0:01:50]} 15. Qe2 {[%clk 0:02:04.7]}
15... f5 {[%clk 0:01:40.7]} 16. exf6 {[%clk 0:01:56.9]} 16... Nxf6 {[%clk
0:01:36.8]} 17. Bb2 {[%clk 0:01:50.1]} 17... Rad8 {[%clk 0:01:14.2]} 18. Be5
{[%clk 0:01:44]} 18... a5 {[%clk 0:01:06]} 19. Rf3 {[%clk 0:01:41]} 19... Rf7
{[%clk 0:00:54.7]} 20. Rh3 {[%clk 0:01:39.6]} 20... g6 {[%clk 0:00:42.9]} 21.
Rf1 {[%clk 0:01:13.9]} 21... Nd7 {[%clk 0:00:41.7]} 22. Bb2 {[%clk 0:00:36.2]}
22... e5 {[%clk 0:00:39.3]} 23. e4 {[%clk 0:00:28.1]} 23... dxe4 {[%clk
0:00:33.1]} 24. Bc4 {[%clk 0:00:27.9]} 24... Rf8 {[%clk 0:00:25.7]} 25. fxe5
{[%clk 0:00:26.2]} 25... Nxe5 {[%clk 0:00:21.3]} 26. Bxe5 {[%clk 0:00:21.5]}
26... Qxe5 {[%clk 0:00:22.2]} 27. Bxf7+ {[%clk 0:00:17.2]} 27... Rxf7 {[%clk
0:00:21.8]} 28. Rxf7 {[%clk 0:00:17.4]} 28... Kxf7 {[%clk 0:00:14.1]} 29. Rxh7+
{[%clk 0:00:17]} 29... Kg8 {[%clk 0:00:13.7]} 30. Rxb7 {[%clk 0:00:17]} 30...
Qd4+ {[%clk 0:00:10]} 31. Qf2 {[%clk 0:00:16.3]} 31... Qd1+ {[%clk 0:00:02.7]}
32. Qf1 {[%clk 0:00:16.3]} 32... Qd4+ {[%clk 0:00:03.6]} 33. Kh1 {[%clk
0:00:16.1]} 1-0

[Event "Early-Titled-Tuesday-Blitz-January-23-2024"]
[Site "Chess.com"]
[Date "2024.01.23"]
[Round "3"]
[White "Gennady_Kozlov"]
[Black "deribas12345"]
[Result "1-0"]
[WhiteElo "2651"]
[BlackElo "2473"]
[TimeControl "180+1"]
[EndTime "8:27:30 PST"]
[Termination "Gennady_Kozlov won by resignation"]

1. b3 {[%clk 0:02:54.8]} 1... Nf6 {[%clk 0:02:57.4]} 2. Bb2 {[%clk 0:02:54.3]}
2... g6 {[%clk 0:02:57.8]} 3. e3 {[%clk 0:02:53.6]} 3... Bg7 {[%clk 0:02:57.3]}
4. f4 {[%clk 0:02:53.7]} 4... O-O {[%clk 0:02:57.4]} 5. Nf3 {[%clk 0:02:53.1]}
5... d6 {[%clk 0:02:51.4]} 6. Be2 {[%clk 0:02:52.4]} 6... c5 {[%clk 0:02:50.2]}
7. O-O {[%clk 0:02:51.9]} 7... Nc6 {[%clk 0:02:50.5]} 8. a4 {[%clk 0:02:50.1]}
8... Be6 {[%clk 0:02:48.5]} 9. Na3 {[%clk 0:02:47.3]} 9... Rc8 {[%clk
0:02:45.6]} 10. Bc4 {[%clk 0:02:44.9]} 10... d5 {[%clk 0:02:36.3]} 11. Bb5
{[%clk 0:02:43.7]} 11... a6 {[%clk 0:02:34.7]} 12. Bxc6 {[%clk 0:02:41.9]} 12...
Rxc6 {[%clk 0:02:35.6]} 13. Ne5 {[%clk 0:02:41.6]} 13... Rc8 {[%clk 0:02:35.5]}
14. Qe2 {[%clk 0:02:40.7]} 14... Ng4 {[%clk 0:02:03.3]} 15. h3 {[%clk
0:02:34.1]} 15... Nxe5 {[%clk 0:02:03]} 16. Bxe5 {[%clk 0:02:32.3]} 16... Bxe5
{[%clk 0:01:59.5]} 17. fxe5 {[%clk 0:02:33.2]} 17... Qc7 {[%clk 0:01:54.8]} 18.
d4 {[%clk 0:02:31.4]} 18... cxd4 {[%clk 0:01:51.6]} 19. exd4 {[%clk 0:02:32.3]}
19... Bf5 {[%clk 0:01:39.5]} 20. c4 {[%clk 0:02:23.9]} 20... Qb6 {[%clk
0:01:35.2]} 21. Qe3 {[%clk 0:02:21.6]} 21... Be4 {[%clk 0:01:29.6]} 22. c5
{[%clk 0:02:17.3]} 22... Qb4 {[%clk 0:01:28.1]} 23. Rfc1 {[%clk 0:02:16.5]}
23... f6 {[%clk 0:01:18.1]} 24. Nc2 {[%clk 0:02:09.2]} 24... Qa5 {[%clk
0:01:16.8]} 25. b4 {[%clk 0:02:05.1]} 25... Qc7 {[%clk 0:01:16.6]} 26. exf6
{[%clk 0:02:03.5]} 26... Rxf6 {[%clk 0:01:15.5]} 27. Na3 {[%clk 0:02:02.4]}
27... Rf3 {[%clk 0:01:09.1]} 28. Qg5 {[%clk 0:01:55]} 28... Rxa3 {[%clk
0:01:06.7]} 29. Rxa3 {[%clk 0:01:53]} 29... Rf8 {[%clk 0:01:01.3]} 30. Qg3
{[%clk 0:01:50.8]} 30... Qd7 {[%clk 0:00:55.9]} 31. Rf1 {[%clk 0:01:40.1]} 31...
Rxf1+ {[%clk 0:00:49.5]} 32. Kxf1 {[%clk 0:01:41]} 32... Qf5+ {[%clk 0:00:49.7]}
33. Qf2 {[%clk 0:01:40.2]} 33... Qg5 {[%clk 0:00:48.5]} 34. Ra1 {[%clk
0:01:13.6]} 34... e5 {[%clk 0:00:42.6]} 35. dxe5 {[%clk 0:01:11.9]} 35... Qxe5
{[%clk 0:00:42.2]} 36. Re1 {[%clk 0:01:11.5]} 36... Qc3 {[%clk 0:00:39.9]} 37.
b5 {[%clk 0:01:06.3]} 37... axb5 {[%clk 0:00:38.8]} 38. axb5 {[%clk 0:01:06.7]}
38... Qc4+ {[%clk 0:00:39.1]} 39. Kg1 {[%clk 0:01:06]} 39... Qxb5 {[%clk
0:00:39.2]} 40. Rf1 {[%clk 0:01:03.1]} 40... Qe8 {[%clk 0:00:33.1]} 41. Qf6
{[%clk 0:01:01.4]} 41... Bf5 {[%clk 0:00:29.2]} 42. Qd6 {[%clk 0:00:57]} 42...
Qe3+ {[%clk 0:00:27.3]} 43. Kh2 {[%clk 0:00:55.4]} 43... d4 {[%clk 0:00:26]} 44.
Qb8+ {[%clk 0:00:53.1]} 44... Kg7 {[%clk 0:00:22.9]} 45. Qxb7+ {[%clk
0:00:52.7]} 45... Kh6 {[%clk 0:00:23.2]} 46. Qf3 {[%clk 0:00:49.3]} 46... Qc3
{[%clk 0:00:16.9]} 47. Qxc3 {[%clk 0:00:48]} 47... dxc3 {[%clk 0:00:17.8]} 48.
Rc1 {[%clk 0:00:47.5]} 48... c2 {[%clk 0:00:17.9]} 49. c6 {[%clk 0:00:47.4]}
49... Kg5 {[%clk 0:00:17.5]} 50. c7 {[%clk 0:00:47.3]} 50... h5 {[%clk
0:00:16.7]} 51. Rxc2 {[%clk 0:00:48.2]} 1-0

[Event "Early-Titled-Tuesday-Blitz-January-23-2024"]
[Site "Chess.com"]
[Date "2024.01.23"]
[Round "3"]
[White "aghasiyevkamal"]
[Black "atalz0"]
[Result "1-0"]
[WhiteElo "2644"]
[BlackElo "2457"]
[TimeControl "180+1"]
[EndTime "8:27:32 PST"]
[Termination "aghasiyevkamal won by resignation"]

1. e4 {[%clk 0:02:59]} 1... d5 {[%clk 0:03:00.3]} 2. exd5 {[%clk 0:02:56.6]}
2... Nf6 {[%clk 0:03:00.9]} 3. d4 {[%clk 0:02:51.7]} 3... Nxd5 {[%clk
0:03:00.9]} 4. c4 {[%clk 0:02:49.7]} 4... Nb6 {[%clk 0:03:01.1]} 5. c5 {[%clk
0:02:40.6]} 5... Nd5 {[%clk 0:03:00.9]} 6. Bc4 {[%clk 0:02:39.2]} 6... c6 {[%clk
0:02:47.5]} 7. Nf3 {[%clk 0:02:31.4]} 7... Bg4 {[%clk 0:02:43.3]} 8. Qb3 {[%clk
0:02:29.6]} 8... Bxf3 {[%clk 0:02:34.5]} 9. Qxf3 {[%clk 0:02:09]} 9... e6 {[%clk
0:02:20.8]} 10. O-O {[%clk 0:02:05.8]} 10... Be7 {[%clk 0:02:19.5]} 11. Nc3
{[%clk 0:02:03.7]} 11... O-O {[%clk 0:02:15.9]} 12. Ne4 {[%clk 0:01:48.8]} 12...
Nd7 {[%clk 0:02:14.1]} 13. Be3 {[%clk 0:01:45.6]} 13... N7f6 {[%clk 0:01:54.6]}
14. Rfd1 {[%clk 0:01:37]} 14... Nxe4 {[%clk 0:01:53.2]} 15. Qxe4 {[%clk
0:01:35.3]} 15... Qd7 {[%clk 0:01:45.6]} 16. Bxd5 {[%clk 0:01:07.4]} 16... exd5
{[%clk 0:01:39.8]} 17. Qd3 {[%clk 0:01:02]} 17... Rfe8 {[%clk 0:01:25.9]} 18.
Bf4 {[%clk 0:01:00.6]} 18... b6 {[%clk 0:01:13.8]} 19. b4 {[%clk 0:00:29.1]}
19... Bd8 {[%clk 0:00:31.5]} 20. Rac1 {[%clk 0:00:17.8]} 20... b5 {[%clk
0:00:27.6]} 21. Qg3 {[%clk 0:00:16]} 21... a5 {[%clk 0:00:21]} 22. a3 {[%clk
0:00:13.3]} 22... Bf6 {[%clk 0:00:16.2]} 23. h3 {[%clk 0:00:07.5]} 23... axb4
{[%clk 0:00:16]} 24. axb4 {[%clk 0:00:07.4]} 24... Ra4 {[%clk 0:00:16.6]} 25.
Rb1 {[%clk 0:00:07.3]} 25... Re4 {[%clk 0:00:15.9]} 26. Re1 {[%clk 0:00:06.9]}
26... Qe6 {[%clk 0:00:15.7]} 27. Rxe4 {[%clk 0:00:06.7]} 27... Qxe4 {[%clk
0:00:16.5]} 28. Bg5 {[%clk 0:00:06.5]} 28... Bxg5 {[%clk 0:00:15.4]} 29. Qb8+
{[%clk 0:00:05.8]} 1-0

[Event "Early-Titled-Tuesday-Blitz-January-23-2024"]
[Site "Chess.com"]
[Date "2024.01.23"]
[Round "3"]
[White "Akylbek2021"]
[Black "MikaelyanArman"]
[Result "0-1"]
[WhiteElo "2259"]
[BlackElo "2843"]
[TimeControl "180+1"]
[EndTime "8:27:36 PST"]
[Termination "MikaelyanArman won on time"]

1. Nf3 {[%clk 0:03:00.9]} 1... d5 {[%clk 0:02:59.4]} 2. b3 {[%clk 0:03:01]} 2...
Bg4 {[%clk 0:02:57.9]} 3. e3 {[%clk 0:02:59.7]} 3... Nd7 {[%clk 0:02:57.7]} 4.
Bb2 {[%clk 0:02:59.7]} 4... Ngf6 {[%clk 0:02:57.7]} 5. h3 {[%clk 0:02:59.4]}
5... Bh5 {[%clk 0:02:57.3]} 6. Be2 {[%clk 0:02:58.2]} 6... e6 {[%clk 0:02:57.2]}
7. Ne5 {[%clk 0:02:54.2]} 7... Bxe2 {[%clk 0:02:55.8]} 8. Qxe2 {[%clk
0:02:55.1]} 8... Nxe5 {[%clk 0:02:48.1]} 9. Bxe5 {[%clk 0:02:56]} 9... Bd6
{[%clk 0:02:48.7]} 10. Bxd6 {[%clk 0:02:34.3]} 10... Qxd6 {[%clk 0:02:49.6]} 11.
O-O {[%clk 0:02:34.1]} 11... O-O {[%clk 0:02:48.6]} 12. d3 {[%clk 0:02:34.1]}
12... a5 {[%clk 0:02:43.5]} 13. a4 {[%clk 0:02:32]} 13... e5 {[%clk 0:02:40.2]}
14. Nd2 {[%clk 0:02:31.3]} 14... Rfe8 {[%clk 0:02:40.5]} 15. e4 {[%clk
0:02:30.5]} 15... c6 {[%clk 0:02:38.9]} 16. Rfe1 {[%clk 0:02:23.9]} 16... Rad8
{[%clk 0:02:32.9]} 17. Nf3 {[%clk 0:02:21.7]} 17... Qc5 {[%clk 0:02:09.8]} 18.
Rad1 {[%clk 0:01:52.3]} 18... dxe4 {[%clk 0:02:07.4]} 19. dxe4 {[%clk
0:01:51.1]} 19... g6 {[%clk 0:01:53.4]} 20. g3 {[%clk 0:01:40.6]} 20... Kg7
{[%clk 0:01:48.8]} 21. Rd3 {[%clk 0:01:39.4]} 21... Rxd3 {[%clk 0:01:10.7]} 22.
Qxd3 {[%clk 0:01:38.5]} 22... Qb4 {[%clk 0:01:10.6]} 23. Nd2 {[%clk 0:01:09.9]}
23... b5 {[%clk 0:01:04.3]} 24. axb5 {[%clk 0:00:42.7]} 24... cxb5 {[%clk
0:01:05.2]} 25. c4 {[%clk 0:00:31.4]} 25... Re6 {[%clk 0:01:00.6]} 26. Nf3
{[%clk 0:00:20.4]} 26... bxc4 {[%clk 0:00:54.5]} 27. Qxc4 {[%clk 0:00:17.9]}
27... Qxc4 {[%clk 0:00:52.4]} 28. bxc4 {[%clk 0:00:18.8]} 28... Nd7 {[%clk
0:00:48]} 29. Ra1 {[%clk 0:00:16.4]} 29... Ra6 {[%clk 0:00:47.9]} 30. Kf1 {[%clk
0:00:13.2]} 30... a4 {[%clk 0:00:46.8]} 31. Ra3 {[%clk 0:00:12.5]} 31... f6
{[%clk 0:00:45.2]} 32. Ke2 {[%clk 0:00:08.8]} 32... Nc5 {[%clk 0:00:45.5]} 33.
Nd2 {[%clk 0:00:08.8]} 33... Rb6 {[%clk 0:00:42.3]} 34. f3 {[%clk 0:00:04.6]}
34... Rb2 {[%clk 0:00:41.8]} 35. Ke3 {[%clk 0:00:04.3]} 35... Kf7 {[%clk
0:00:40.4]} 36. h4 {[%clk 0:00:04.1]} 36... h5 {[%clk 0:00:37.5]} 37. g4 {[%clk
0:00:03.7]} 37... Ke6 {[%clk 0:00:38]} 38. gxh5 {[%clk 0:00:03.4]} 38... gxh5
{[%clk 0:00:38.9]} 39. Ra1 {[%clk 0:00:02]} 39... Rxd2 {[%clk 0:00:27]} 0-1